Department Family,Entity,Date,Expense Type,Expense Area,Supplier,Transaction Number,AP Amount,VAT Registration Number,Purchase Invoice Number
Department of Health,Bridgewater Community Healthcare NHS Foundation Trust,31-Jul-17,Service Charge,Executive,CARE QUALITY COMMISSION,23356820,"202,239.00",,42146873
Department of Health,Bridgewater Community Healthcare NHS Foundation Trust,31-Jul-17,Rent,Bevan House,SHARMA INVESTMENTS LTD,23367812,"33,125.00",,BE17010617
Department of Health,Bridgewater Community Healthcare NHS Foundation Trust,31-Jul-17,Drugs,Medicines Management,NHS BUSINESS SERVICES AUTHORITY,23383797,"90,439.87",654434729,1000051756
Department of Health,Bridgewater Community Healthcare NHS Foundation Trust,31-Jul-17,Drugs,Medicines Management,NHS BUSINESS SERVICES AUTHORITY,23383846,"77,394.83",654434729,1000052083
Department of Health,Bridgewater Community Healthcare NHS Foundation Trust,31-Jul-17,Rent,89 Spencer House,SAVILLS (UK) LTD,23383923,"38,690.40",,201700000330
Department of Health,Bridgewater Community Healthcare NHS Foundation Trust,31-Jul-17,Drugs,Medicines Management,NHS BUSINESS SERVICES AUTHORITY,23395013,"114,996.11",654434729,1000048224
Department of Health,Bridgewater Community Healthcare NHS Foundation Trust,31-Jul-17,Drugs,Medicines Management,NHS BUSINESS SERVICES AUTHORITY,23395016,"100,695.59",654434729,1000048540
Department of Health,Bridgewater Community Healthcare NHS Foundation Trust,31-Jul-17,SrvcsRecd-FoundationTrust,ICS,WRIGHTINGTON WIGAN & LEIGH NHS FOUNDATION TRUST,23395019,"226,692.93",654951509,55563905
Department of Health,Bridgewater Community Healthcare NHS Foundation Trust,31-Jul-17,SrvcsRecd-FoundationTrust,ICS,WRIGHTINGTON WIGAN & LEIGH NHS FOUNDATION TRUST,23395022,"226,692.93",654951509,55563906
Department of Health,Bridgewater Community Healthcare NHS Foundation Trust,31-Jul-17,Hcare Srv Rec NHS Trust,Midwifery - Halton,ST HELENS & KNOWSLEY HOSPITALS NHS TRUST,23395025,"55,500.00",654943996,16766614
Department of Health,Bridgewater Community Healthcare NHS Foundation Trust,31-Jul-17,Hcare Srv Rec NHS Trust,Midwifery - Halton,ST HELENS & KNOWSLEY HOSPITALS NHS TRUST,23395031,"55,500.00",654943996,16767030
Department of Health,Bridgewater Community Healthcare NHS Foundation Trust,31-Jul-17,Services Received - NHSTs,Dental - Warrington,EAST CHESHIRE NHS TRUST,23395043,"74,000.00",654919892,17497004
Department of Health,Bridgewater Community Healthcare NHS Foundation Trust,31-Jul-17,Computer Software/License,Computing,PHOENIX PARTNERSHIP (LEEDS) LTD,23429160,"109,365.03",721671841,7707
Department of Health,Bridgewater Community Healthcare NHS Foundation Trust,31-Jul-17,Computer Software/License,Computing,PHOENIX PARTNERSHIP (LEEDS) LTD,23429161,"123,633.02",721671841,7708
Department of Health,Bridgewater Community Healthcare NHS Foundation Trust,31-Jul-17,Rates,89 Spencer House,WARRINGTON BOROUGH COUNCIL,23458216,"47,293.95",152847160,1025579564506031747293
Department of Health,Bridgewater Community Healthcare NHS Foundation Trust,31-Jul-17,OOH Comms Equip/GP Rotas,GP Out of Hours Service - Wigan,DR JK AGARWALA,23462292,"30,286.24",,JUNE17 2901
Department of Health,Bridgewater Community Healthcare NHS Foundation Trust,31-Jul-17,SrvcsRecd-FoundationTrust,Offender Health HM Prison Healthcare (Hindley),GREATER MANCHESTER WEST MENTAL HEALTH NHS FOUNDATION TRUST,23489771,"145,146.69",654929594,0000024954
Department of Health,Bridgewater Community Healthcare NHS Foundation Trust,31-Jul-17,Lease Rents,Bath Street,COMMUNITY HEALTH PARTNERSHIPS LTD,23510369,"67,518.44",GB782562113,0060031452
Department of Health,Bridgewater Community Healthcare NHS Foundation Trust,31-Jul-17,Lease Rents,Boston House,COMMUNITY HEALTH PARTNERSHIPS LTD,23510369,"76,369.66",GB782562113,0060031452
Department of Health,Bridgewater Community Healthcare NHS Foundation Trust,31-Jul-17,Lease Rents,Chandler House,COMMUNITY HEALTH PARTNERSHIPS LTD,23510369,"54,666.70",GB782562113,0060031452
Department of Health,Bridgewater Community Healthcare NHS Foundation Trust,31-Jul-17,Lease Rents,Child Development Centre Orford,COMMUNITY HEALTH PARTNERSHIPS LTD,23510369,"52,146.26",GB782562113,0060031452
Department of Health,Bridgewater Community Healthcare NHS Foundation Trust,31-Jul-17,Lease Rents,Claire House,COMMUNITY HEALTH PARTNERSHIPS LTD,23510369,"37,432.13",GB782562113,0060031452
Department of Health,Bridgewater Community Healthcare NHS Foundation Trust,31-Jul-17,Lease Rents,Leigh Infirmary,COMMUNITY HEALTH PARTNERSHIPS LTD,23510369,"105,112.24",GB782562113,0060031452
Department of Health,Bridgewater Community Healthcare NHS Foundation Trust,31-Jul-17,Lease Rents,Pemberton,COMMUNITY HEALTH PARTNERSHIPS LTD,23510369,"36,911.47",GB782562113,0060031452
Department of Health,Bridgewater Community Healthcare NHS Foundation Trust,31-Jul-17,Lease Rents,Platt Bridge,COMMUNITY HEALTH PARTNERSHIPS LTD,23510369,"77,966.28",GB782562113,0060031452
Department of Health,Bridgewater Community Healthcare NHS Foundation Trust,31-Jul-17,Lease Rents,Widnes HCRC,COMMUNITY HEALTH PARTNERSHIPS LTD,23510369,"75,410.98",GB782562113,0060031452
Department of Health,Bridgewater Community Healthcare NHS Foundation Trust,31-Jul-17,Lease Rents,Bath Street,COMMUNITY HEALTH PARTNERSHIPS LTD,23510372,"67,518.44",GB782562113,0060031440
Department of Health,Bridgewater Community Healthcare NHS Foundation Trust,31-Jul-17,Lease Rents,Boston House,COMMUNITY HEALTH PARTNERSHIPS LTD,23510372,"76,369.66",GB782562113,0060031440
Department of Health,Bridgewater Community Healthcare NHS Foundation Trust,31-Jul-17,Lease Rents,Chandler House,COMMUNITY HEALTH PARTNERSHIPS LTD,23510372,"54,666.70",GB782562113,0060031440
Department of Health,Bridgewater Community Healthcare NHS Foundation Trust,31-Jul-17,Lease Rents,Child Development Centre Orford,COMMUNITY HEALTH PARTNERSHIPS LTD,23510372,"52,146.26",GB782562113,0060031440
Department of Health,Bridgewater Community Healthcare NHS Foundation Trust,31-Jul-17,Lease Rents,Claire House,COMMUNITY HEALTH PARTNERSHIPS LTD,23510372,"37,432.13",GB782562113,0060031440
Department of Health,Bridgewater Community Healthcare NHS Foundation Trust,31-Jul-17,Lease Rents,Leigh Infirmary,COMMUNITY HEALTH PARTNERSHIPS LTD,23510372,"105,112.24",GB782562113,0060031440
Department of Health,Bridgewater Community Healthcare NHS Foundation Trust,31-Jul-17,Lease Rents,Pemberton,COMMUNITY HEALTH PARTNERSHIPS LTD,23510372,"36,911.47",GB782562113,0060031440
Department of Health,Bridgewater Community Healthcare NHS Foundation Trust,31-Jul-17,Lease Rents,Platt Bridge,COMMUNITY HEALTH PARTNERSHIPS LTD,23510372,"77,966.28",GB782562113,0060031440
Department of Health,Bridgewater Community Healthcare NHS Foundation Trust,31-Jul-17,Lease Rents,Widnes HCRC,COMMUNITY HEALTH PARTNERSHIPS LTD,23510372,"75,410.98",GB782562113,0060031440
Department of Health,Bridgewater Community Healthcare NHS Foundation Trust,31-Jul-17,Lease Rents,Bath Street,COMMUNITY HEALTH PARTNERSHIPS LTD,23510375,"67,518.44",GB782562113,0060031458
Department of Health,Bridgewater Community Healthcare NHS Foundation Trust,31-Jul-17,Lease Rents,Boston House,COMMUNITY HEALTH PARTNERSHIPS LTD,23510375,"76,369.66",GB782562113,0060031458
Department of Health,Bridgewater Community Healthcare NHS Foundation Trust,31-Jul-17,Lease Rents,Chandler House,COMMUNITY HEALTH PARTNERSHIPS LTD,23510375,"54,666.70",GB782562113,0060031458
Department of Health,Bridgewater Community Healthcare NHS Foundation Trust,31-Jul-17,Lease Rents,Child Development Centre Orford,COMMUNITY HEALTH PARTNERSHIPS LTD,23510375,"52,146.26",GB782562113,0060031458
Department of Health,Bridgewater Community Healthcare NHS Foundation Trust,31-Jul-17,Lease Rents,Claire House,COMMUNITY HEALTH PARTNERSHIPS LTD,23510375,"37,432.13",GB782562113,0060031458
Department of Health,Bridgewater Community Healthcare NHS Foundation Trust,31-Jul-17,Lease Rents,Leigh Infirmary,COMMUNITY HEALTH PARTNERSHIPS LTD,23510375,"105,112.24",GB782562113,0060031458
Department of Health,Bridgewater Community Healthcare NHS Foundation Trust,31-Jul-17,Lease Rents,Pemberton,COMMUNITY HEALTH PARTNERSHIPS LTD,23510375,"36,911.47",GB782562113,0060031458
Department of Health,Bridgewater Community Healthcare NHS Foundation Trust,31-Jul-17,Lease Rents,Platt Bridge,COMMUNITY HEALTH PARTNERSHIPS LTD,23510375,"77,966.28",GB782562113,0060031458
Department of Health,Bridgewater Community Healthcare NHS Foundation Trust,31-Jul-17,Lease Rents,Widnes HCRC,COMMUNITY HEALTH PARTNERSHIPS LTD,23510375,"75,410.98",GB782562113,0060031458
Department of Health,Bridgewater Community Healthcare NHS Foundation Trust,31-Jul-17,Audit Fees: Statutory,Finance,PRICEWATERHOUSE COOPERS,23510433,"47,502.00",714775323,1354769274
Department of Health,Bridgewater Community Healthcare NHS Foundation Trust,31-Jul-17,Hlthcre-Foundation Trsts,Midwifery - Halton,WARRINGTON & HALTON HOSPITALS NHS FOUNDATION TRUST,23510611,"32,891.00",654404741,15364068
Department of Health,Bridgewater Community Healthcare NHS Foundation Trust,31-Jul-17,Grants,Health Care Libraries,ST HELENS & KNOWSLEY HOSPITALS NHS TRUST,23517403,"57,000.00",654943996,16767519
Department of Health,Bridgewater Community Healthcare NHS Foundation Trust,31-Jul-17,Services Received - NHSTs,Urgent Care Centre - Halton,ST HELENS & KNOWSLEY HOSPITALS NHS TRUST,23518227,"40,391.35",654943996,16767479
Department of Health,Bridgewater Community Healthcare NHS Foundation Trust,31-Jul-17,Lease Rents,Dewar Court,NHS PROPERTY SERVICES LTD,23546688,"30,158.94",156725100,48377887
Department of Health,Bridgewater Community Healthcare NHS Foundation Trust,31-Jul-17,Rent,Lister Road,NHS PROPERTY SERVICES LTD,23546818,"27,622.23",156725100,48381622
Department of Health,Bridgewater Community Healthcare NHS Foundation Trust,31-Jul-17,Lease Rents,Bridges Learning Centre,NHS PROPERTY SERVICES LTD,23546938,"31,186.32",156725100,48387971
Department of Health,Bridgewater Community Healthcare NHS Foundation Trust,31-Jul-17,Rent,Europa Boulevard,NHS PROPERTY SERVICES LTD,23547046,"30,490.73",156725100,48393722
Department of Health,Bridgewater Community Healthcare NHS Foundation Trust,31-Jul-17,Rent,Penketh Health Centre,NHS PROPERTY SERVICES LTD,23547056,"25,669.21",156725100,48393882
Department of Health,Bridgewater Community Healthcare NHS Foundation Trust,31-Jul-17,Lease Rents,Guardian St Medical Centre,NHS PROPERTY SERVICES LTD,23547227,"41,647.62",156725100,48409778
Department of Health,Bridgewater Community Healthcare NHS Foundation Trust,31-Jul-17,Lease Rents,81 Spencer House,NHS PROPERTY SERVICES LTD,23547230,"41,762.45",156725100,48409779
Department of Health,Bridgewater Community Healthcare NHS Foundation Trust,31-Jul-17,Rent,Fingerpost Health Park,NHS PROPERTY SERVICES LTD,23583058,"52,126.48",156725100,48336504
Department of Health,Bridgewater Community Healthcare NHS Foundation Trust,31-Jul-17,Rent,Fingerpost Health Park,NHS PROPERTY SERVICES LTD,23583062,"52,126.48",156725100,48342591
Department of Health,Bridgewater Community Healthcare NHS Foundation Trust,31-Jul-17,Contr Other External,General Management,NHS PROPERTY SERVICES LTD,23583066,"373,027.70",156725100,48349643
Department of Health,Bridgewater Community Healthcare NHS Foundation Trust,31-Jul-17,Contr Other External,General Management,NHS PROPERTY SERVICES LTD,23583069,"587,698.00",156725100,48360525
Department of Health,Bridgewater Community Healthcare NHS Foundation Trust,31-Jul-17,Rent,Europa Boulevard,NHS PROPERTY SERVICES LTD,23583072,"91,472.19",156725100,48375313
Department of Health,Bridgewater Community Healthcare NHS Foundation Trust,31-Jul-17,Rent,Penketh Health Centre,NHS PROPERTY SERVICES LTD,23583075,"77,007.63",156725100,48375877
Department of Health,Bridgewater Community Healthcare NHS Foundation Trust,31-Jul-17,Computer Hardware Purch,ICS,WRIGHTINGTON WIGAN & LEIGH NHS FOUNDATION TRUST,23583079,"95,000.00",654951509,55563577
Department of Health,Bridgewater Community Healthcare NHS Foundation Trust,31-Jul-17,Services Received - NHSTs,IT Systems and Management,ST HELENS & KNOWSLEY HOSPITALS NHS TRUST,23583081,"120,750.00",654943996,16766162
Department of Health,Bridgewater Community Healthcare NHS Foundation Trust,31-Jul-17,Services Received - NHSTs,IT Systems and Management,ST HELENS & KNOWSLEY HOSPITALS NHS TRUST,23583087,"120,750.00",654943996,16766630
Department of Health,Bridgewater Community Healthcare NHS Foundation Trust,31-Jul-17,SrvcsRecd-FoundationTrust,Human Resources,WRIGHTINGTON WIGAN & LEIGH NHS FOUNDATION TRUST,23583088,"43,950.00",654951509,55565647
Department of Health,Bridgewater Community Healthcare NHS Foundation Trust,31-Jul-17,Commercial Sector,ICS,CUERDEN DEVELOPMENTS LTD,23583094,"168,045.83",,CRT1704
Department of Health,Bridgewater Community Healthcare NHS Foundation Trust,31-Jul-17,Audit Fees: Internal,Finance,ROYAL LIVERPOOL&BROADGREEN UNIVERSITY HOSPITALS NHS TRUST (THE),23583096,"32,830.00",654966000,8610069265
Department of Health,Bridgewater Community Healthcare NHS Foundation Trust,31-Jul-17,Continence Products,Continence Adult - Warrington,SCA HYGIENE PRODUCTS UK LTD,23583103,"37,963.13",600433106,6401268193
Department of Health,Bridgewater Community Healthcare NHS Foundation Trust,31-Jul-17,External Consultancy Fees,Finance,KPMG LLP,23583106,"182,692.80",791788859,5501456409
Department of Health,Bridgewater Community Healthcare NHS Foundation Trust,31-Jul-17,External Consultancy Fees,Finance,KPMG LLP,23583108,"195,955.20",791788859,5501456775
Department of Health,Bridgewater Community Healthcare NHS Foundation Trust,31-Jul-17,External Consultancy Fees,Executive,KPMG LLP,23601960,"36,570.00",791788859,5501466707
Department of Health,Bridgewater Community Healthcare NHS Foundation Trust,31-Jul-17,Med & Surg Equip General,Great Lever HC School Health - Bolton,THOMSON SCREENING SOLUTIONS LTD,23616828,"25,515.60",,01519
Department of Health,Bridgewater Community Healthcare NHS Foundation Trust,31-Jul-17,Drugs,Medicines Management,NHS BUSINESS SERVICES AUTHORITY,23618486,"96,034.24",654434729,1000051105
Department of Health,Bridgewater Community Healthcare NHS Foundation Trust,31-Jul-17,Drugs,Medicines Management,NHS BUSINESS SERVICES AUTHORITY,23618551,"83,709.92",654434729,1000051432
Department of Health,Bridgewater Community Healthcare NHS Foundation Trust,31-Jul-17,External Consultancy Fees,Liverpool,KPMG LLP,23618581,"38,582.26",791788859,5501411664
Department of Health,Bridgewater Community Healthcare NHS Foundation Trust,31-Jul-17,Services Received - NHSTs,IT Systems and Management,ST HELENS & KNOWSLEY HOSPITALS NHS TRUST,23618587,"64,177.00",654943996,16767075
Department of Health,Bridgewater Community Healthcare NHS Foundation Trust,31-Jul-17,Services Received - NHSTs,Midwifery - Halton,ST HELENS & KNOWSLEY HOSPITALS NHS TRUST,23618615,"55,500.00",654943996,16767457
Department of Health,Bridgewater Community Healthcare NHS Foundation Trust,31-Jul-17,Drugs,Medicines Management,NHS BUSINESS SERVICES AUTHORITY,23618617,"88,797.74",654434729,1000052413
Department of Health,Bridgewater Community Healthcare NHS Foundation Trust,31-Jul-17,Independent Sector,Intermediate Care Bed Based Team - Warrington,PHOENIX HEALTH WARRINGTON LTD,23618807,"39,000.00",,201718QTR2
Department of Health,Bridgewater Community Healthcare NHS Foundation Trust,31-Jul-17,Grants,Health Care Libraries,UNIVERSITY OF NEWCASTLE,23657864,"59,955.60",,9000296126
